Cogmind - Beta 13 @@@ ROGUE MODE // 2024.04.28 @ 22:40:04 Player: BionicBot Result: Destroyed by G-34 Mercenary with Small Laser Performance ------------- Evolutions (1) 500 Regions Visited (2) 400 Robots Destroyed (55) 275 Value Destroyed (1190) 1190 Prototype IDs (2) 40 Alien Tech Used (0) 0 Bonus (111) 111 TOTAL SCORE: 2516 Bonus ------- High Alert Combat Kills 111 Cogmind --------- Core Integrity 0/400 Matter 297/300 Energy 140/140 System Corruption 0% Temperature Warm (113) Movement Walking (190) Ox1 Location -9/Materials Parts ------- > --- POWER (1) -------- Light Deuterium Engine > --- PROPULSION (4) --- Aluminum Leg > --- UTILITY (2) ------ Medium Storage Unit Visual Processing Unit > --- WEAPON (2) ------- Medium Laser Heavy Assault Rifle > --- INVENTORY (10) --- Light Deuterium Engine Heat Sink Small Storage Unit Large Storage Unit Compact Matter Pod (150) Compact Matter Pod (150) Seismic Detector Heavy Particle Cannon Heavy Particle Cannon Datajack Peak State ------------ > --- POWER ------------ Light Deuterium Engine > --- PROPULSION ------- Aluminum Leg Aluminum Leg Flight Unit Flight Unit > --- UTILITY ---------- Small Storage Unit Visual Processing Unit > --- WEAPON ----------- Light Assault Rifle Light Assault Rifle > --- INVENTORY -------- Light Deuterium Engine Light Deuterium Engine Flight Unit Heat Sink Large Storage Unit Compact Matter Pod Compact Matter Pod Datajack [Rating: 13] Favorites ----------- Power Ion Engine Engine Ion Engine Propulsion Aluminum Leg Leg Aluminum Leg Flight Unit Flight Unit Utility Heat Sink Device Heat Sink Storage Medium Storage Unit Processor Visual Processing Unit Protection Medium Armor Plating Weapon Assault Rifle Energy Gun Particle Gun Energy Cannon Heavy Particle Cannon Ballistic Gun Assault Rifle Special Weapon Mining Laser Special Melee Weapon Datajack Build | -11 -10 -9 ------- Run | Yrd Mat Mat Slots Evolved 2 | . . 2 Power . | . . . Propulsion 2 | . . 2 Utility . | . . . Weapon . | . . . Parts Attached 65 | 14 17 34 Power 8 | 1 2 5 Engine 8 | 1 2 5 Core . | . . . Reactor . | . . . Propulsion 14 | 3 3 8 Treads . | . . . Leg 10 | 3 3 4 Wheel . | . . . Hover . | . . . Flight 4 | . . 4 Utility 24 | 4 8 12 Device 11 | 4 4 3 Storage 8 | . 1 7 Processor 1 | . . 1 Hackware . | . . . Protection 4 | . 3 1 Artifact . | . . . Weapon 19 | 6 4 9 Energy Gun 5 | 2 2 1 Energy Cannon 1 | . . 1 Ballistic Gun 10 | 2 2 6 Ballistic Cannon . | . . . Launcher . | . . . Special Weapon 2 | 2 . . Impact Weapon . | . . . Slashing Weapon . | . . . Piercing Weapon . | . . . Special Melee Weapon 1 | . . 1 Unidentified Prototypes . | . . . Parts Lost 18 | 4 2 12 Power 1 | . . 1 Propulsion 6 | 1 . 5 Utility 7 | 2 1 4 Weapon 4 | 1 1 2 Highest Loss Streak 5 | 4 2 5 To Critical Strikes . | . . . Average Slot Usage (%) 82 | . 95 70 Engine 11 | . 14 10 Leg 19 | . 26 13 Flight 3 | . . 6 Device 10 | . 14 8 Storage 2 | . . 4 Processor 2 | . . 5 Protection 6 | . 11 1 Energy Gun 9 | . 14 4 Ballistic Gun 13 | . 12 15 Naked Turns . | . . . Heaviest Build 22 | 9 22 20 Greatest Support 20 | 20 20 20 Greatest Overweight (x) 2 | . 2 1 Average Overweight (x) . | . . . Largest Inventory Capacity 15 | 5 15 15 Average Capacity 5 | 5 5 6 Most Carried 10 | 5 5 10 Average Carried 5 | 2 4 6 Final Capacity 10 | 5 5 10 Final Carried 10 | 4 3 10 Class Distribution -------------------- 47% | Scavenger-Mutant 46% | Mutant 5% | Scavenger-Sprinter Dominant Class ---------------- Mutant | -10/Materials Scavenger-Mutant | -9/Materials Resources | -11 -10 -9 ----------- Run | Yrd Mat Mat Matter Collected 1654 | 315 370 969 Remotely . | . . . Salvage Created 1604 | 147 392 1065 Parts 115 | 14 29 72 Haulers Intercepted . | . . . Recyclers Shooed 2 | . 1 1 Parts Field Recycled . | . . . Retrieved Matter . | . . . Parts Self-Destructed . | . . . Prevented . | . . . Kills | -11 -10 -9 ------- Run | Yrd Mat Mat Combat Hostiles Destroyed 39 | 1 11 27 Guns 37 | 1 11 25 AOE 2 | . . 2 Classes Destroyed 10 | 3 3 4 Worker 2 | 1 1 . Builder 2 | . 1 1 Tunneler 4 | 4 . . Recycler 1 | . . 1 Operator 1 | . . 1 Watcher 6 | . 3 3 Swarmer 16 | . 6 10 Grunt 17 | 1 5 11 Brawler 1 | . . 1 Sentry 5 | . . 5 Best Kill Streak 5 | 3 4 5 Combat Bots Only 4 | 1 3 4 Max Kills in Single Turn 2 | 1 1 2 Gunslinging . | . . . Exploded 2 | . . 2 Melee . | . . . Uniques/NPCs Destroyed . | . . . Combat | -11 -10 -9 -------- Run | Yrd Mat Mat Hostile Shots Fired 264 | 7 54 203 Missed 60 | 1 8 51 Damage Taken 2487 | 353 533 1601 Core 542 | 10 132 400 Absorbed by Shields . | . . . Regen/Repaired (Parts) 133 | . 37 96 Core Remaining (%) 69 | 96 43 . Volleys Fired 195 | 16 53 126 Largest 2 | 2 2 2 Hottest 200 | 200 130 85 Shots Fired 321 | 23 96 202 Gun 317 | 19 96 202 Cannon . | . . . Launcher . | . . . Special 4 | 4 . . Kinetic 188 | 5 38 145 Thermal 133 | 18 58 57 Explosive . | . . . Electromagnetic . | . . . Robot Hit Streak 7 | 7 6 6 Robot Miss Streak 9 | 2 3 9 Penetration Max . | . . . Secondary Targets 3 | . 1 2 Max Gunslinging Chain 1 | . 1 1 Shots Hit Robots 190 | 14 56 120 Core Hits 85 | 7 22 56 Critical Kills . | . . . Critical Parts Destroyed 3 | . 2 1 Critical Strikes 9 | 1 4 4 Burn 6 | 1 2 3 Destroy 3 | . 2 1 Melee Attacks 6 | . . 6 Impact . | . . . Slashing . | . . . Piercing . | . . . Sneak Attacks 2 | . . 2 Combat Hostiles . | . . . Follow-up Attacks . | . . . Damage Inflicted 2698 | 172 786 1740 Guns 2442 | 172 786 1484 Cannons . | . . . Explosions 253 | . . 253 Melee . | . . . Ramming 3 | . . 3 Kinetic 1258 | 36 307 915 Thermal 1437 | 136 479 822 Explosive . | . . . Electromagnetic . | . . . Impact . | . . . Slashing . | . . . Piercing . | . . . Highest Corruption 11 | 11 11 . Average Corruption 11 | 11 11 . Corruption Purged . | . . . Corruption Blocked . | . . . Effects 47 | 4 43 . Message Errors 7 | . 7 . Matter Fused 14 | 2 12 . Heat Flow Errors 7 | . 7 . Energy Discharges 7 | 1 6 . Data Loss (minor) 6 | 1 5 . Data Loss (major) 3 | . 3 . Misfires 2 | . 2 . Misdirections 1 | . 1 . Overload Shots . | . . . Overflow Damage . | . . . Projectiles . | . . . Explosions . | . . . Melee . | . . . Knockbacks . | . . . Impact . | . . . Kinetic . | . . . Secondary . | . . . Self-Inflicted Damage 25 | . . 25 Shots 1 | . . 1 Rammed . | . . . Targets Rammed 2 | . . 2 Kicked 2 | . . 2 Crushed . | . . . Highest Temperature 385 | 111 385 152 Average Temperature 77 | 44 113 33 Received Heat Transfer 732 | 36 216 480 Effects 1 | . 1 . Interference 1 | . 1 . Siege Activations . | . . . Robots Corrupted . | . . . Combat Hostiles . | . . . Parts Fried . | . . . Impact Corruptions . | . . . Robots Melted . | . . . Combat Hostiles . | . . . Parts Melted 6 | 1 1 4 Heat Transferred 3665 | 481 1295 1889 Parts Sabotaged . | . . . Parts Stolen . | . . . Parts Stripped . | . . . Power Chain Reactions . | . . . Alert | -11 -10 -9 ------- Run | Yrd Mat Mat Peak Influence 632 | 45 326 632 Initial 74 | . 3 74 Average 225 | 17 147 338 Maximum Alert Level 2 | . 1 2 Low Security (%) 48 | 100 71 17 Level 1 37 | . 28 52 Level 2 14 | . . 29 Level 3 . | . . . Level 4 . | . . . Level 5 . | . . . High Security . | . . . Max Security . | . . . Squads Dispatched 6 | . 2 4 Investigation 2 | . . 2 Extermination . | . . . Reinforcement 4 | . 2 2 Assault . | . . . Garrison . | . . . Intercept . | . . . Searches Triggered . | . . . Construction Impeded . | . . . Haulers Reinforced . | . . . Active Scanning Responses . | . . . Cargo Convoy Interrupts . | . . . Stealth | -11 -10 -9 --------- Run | Yrd Mat Mat Distress Signals 3 | . 1 2 Communications Jammed . | . . . Distress Signals . | . . . Times Spotted 66 | 1 23 42 Peak Tracking Total 6 | 1 6 4 Tactical Retreats 4 | . 1 3 Traps | -11 -10 -9 ------- Run | Yrd Mat Mat Traps Triggered 3 | . 2 1 Indirectly . | . . . Trap Hack Attempts . | . . . Triggered . | . . . Disarmed . | . . . Reprogrammed . | . . . Reused . | . . . Traps Extracted . | . . . Installed . | . . . Triggered . | . . . Machines | -11 -10 -9 ---------- Run | Yrd Mat Mat Machines Disabled 2 | . . 2 Max in Single Turn 2 | . . 2 Machines Repaired . | . . . Machines Dismantled . | . . . Machines Sabotaged . | . . . Overloaded Fab Kills . | . . . Hacking | -11 -10 -9 --------- Run | Yrd Mat Mat Machines Accessed 11 | . 6 5 Terminals 7 | . 4 3 Fabricators . | . . . Repair Stations 2 | . 1 1 Recycling Units 2 | . 1 1 Scanalyzers . | . . . Garrison Access . | . . . Total Hacks 32 | . 15 17 Successful 21 | . 10 11 Failed 11 | . 5 6 Catastrophic 1 | . . 1 Database Lockouts . | . . . Manual . | . . . Terminals 20 | . 9 11 Fabricators . | . . . Repair Stations 8 | . 3 5 Recycling Units 4 | . 3 1 Scanalyzers . | . . . Garrison Access . | . . . Terminal Hacks 12 | . 5 7 Record 6 | . 5 1 Prototype ID Bank 1 | . . 1 Alert Level 1 | . . 1 Dispatch Records 1 | . . 1 Maintenance Status 1 | . . 1 Reinforcement Status 1 | . . 1 Hauler Manifests 1 | . . 1 Fabricator Hacks . | . . . Repair Station Hacks 6 | . 3 3 Scan Component 3 | . 1 2 Repair 2 | . 1 1 Refit 1 | . 1 . Recycling Unit Hacks 3 | . 2 1 Report Inventory 2 | . 1 1 Retrieve Components 1 | . 1 . Scanalyzer . | . . . Garrison Access Hacks . | . . . Unauthorized Hacks . | . . . Terminals . | . . . Fabricators . | . . . Repair Stations . | . . . Recycling Units . | . . . Scanalyzers . | . . . Garrison Access . | . . . Data Cores Recovered . | . . . Used . | . . . Hacking Detections 8 | . 5 3 Full Trace Events 4 | . 2 2 Feedback Events . | . . . Feedback Blocked . | . . . Robot Schematics Acquired . | . . . Robots Built . | . . . Authchips . | . . . Time . | . . . Total Robot Build Rating . | . . . Part Schematics Acquired . | . . . Parts Built . | . . . Authchips . | . . . Time . | . . . Total Part Build Rating . | . . . Parts Repaired 2 | . 1 1 Time 52 | . 26 26 Parts Recycled . | . . . Recycled Matter . | . . . Retrieved Matter . | . . . Retrieved Components 10 | . 10 . Parts Scanalyzed . | . . . Part Schematics Acquired . | . . . Parts Damaged . | . . . Bothacking | -11 -10 -9 ------------ Run | Yrd Mat Mat Used RIF Installer . | . . . Robots Hacked 2 | . . 2 Non-combat 1 | . . 1 Combat 1 | . . 1 Robot Hacks Applied 3 | . . 3 parse_system 2 | . . 2 check_alert 1 | . . 1 Relay Couplers Released . | . . . Fabnet Peak Effective % . | . . . Robots Rewired . | . . . Allies Hacked . | . . . Hacks Repelled . | . . . Allies | -11 -10 -9 -------- Run | Yrd Mat Mat Total Allies . | . . . Largest Group . | . . . Highest-Rated Group . | . . . Highest-Rated Ally . | . . . Total Orders . | . . . Ally Attacks . | . . . Total Damage . | . . . Kills . | . . . Allies Corrupted . | . . . Allies Melted . | . . . Intel | -11 -10 -9 ------- Run | Yrd Mat Mat Robot Analysis Total . | . . . Derelict Logs Recovered . | . . . Drone Launches . | . . . Drone Recoveries . | . . . Exploration | -11 -10 -9 ------------- Run | Yrd Mat Mat Turns Passed 2456 | 256 1024 1176 Spaces Moved 1472 | 153 600 719 Core 33 | 17 2 14 Treads . | . . . Legs 1134 | 136 598 400 Wheels . | . . . Hover . | . . . Flight 305 | . . 305 Fastest Speed 31 | 50 120 31 Average Speed 106 | 112 121 93 Slowest Speed 190 | 120 190 190 Overloaded Moves . | . . . Propulsion Burnouts . | . . . Robots Hopped 2 | . . 2 Cave-ins Triggered 1 | 1 . . Exploration Rate (%) 48 | 9 91 45 Regions Visited 2 Branch Regions . Pre-discovered Areas . | . . . Known Exits Taken . | . . . Unknown Exits Taken 2 | 1 1 . Scrap Searched . | . . . Spaces Dug 2 | 2 . . Terrain Destroyed 27 | 3 . 24 Melee . | . . . Projectile 3 | 3 . . AOE 24 | . . 24 Terrain Rammed . | . . . Walls Destroyed . | . . . Machines Disabled . | . . . Actions | -11 -10 -9 --------- Run | Yrd Mat Mat Total 2026 | 204 802 1020 Wait 210 | 7 110 93 Move 1466 | 152 599 715 Hop 2 | . . 2 Pick Up 52 | 15 10 27 Fast Attach 11 | . 5 6 Attach 28 | 11 6 11 Detach 2 | . 1 1 Swap 26 | 3 6 17 Drop 26 | . 12 14 Fire 195 | 16 53 126 Melee 6 | . . 6 Ram . | . . . Kick 2 | . . 2 Crush . | . . . Escape Stasis . | . . . Rewire . | . . . Trap . | . . . Miscellaneous . | . . . Route ------- -11/Scrapyard -10/Materials (discovered 4 exits: *Mat x3 / [*Min]) -9/Materials (discovered 4 exits: [*Mat] / [*Min x2] / [*Sto]) History --------- Turn | Location | Event 2 | -11/Scrapyard | Met Revision 17 68 | -11/Scrapyard | Discovered new exit (range 8) 190 | -11/Scrapyard | Crushed by falling debris 190 | -11/Scrapyard | System corruption reached 10% 221 | -11/Scrapyard | Lost 4 parts (1n2u1w) 257 | -11/Scrapyard | Entered Materials 337 | -10/Materials | Build established: Mutant 647 | -10/Materials | Discovered new exit (range 10) 849 | -10/Materials | Core integrity fell below 50% 945 | -10/Materials | Discovered new exit (range 11) 996 | -10/Materials | Repaired Ion Engine 1097 | -10/Materials | Discovered new exit (range 6) 1183 | -10/Materials | Discovered new exit (range 7) 1281 | -10/Materials | Entered another Materials area 1281 | -9/Materials | Evolved 2 slots: Propulsion x2 1583 | -9/Materials | Build established: Scavenger-Mutant 1697 | -9/Materials | Lost 5 parts (1n2u2w) 1796 | -9/Materials | Lost 3 parts (1p1n1u) 1806 | -9/Materials | Repaired Assault Rifle 1807 | -9/Materials | Core integrity fell below 50% 1883 | -9/Materials | Discovered new exit (range 15) 2005 | -9/Materials | Discovered new exit (range 8) 2325 | -9/Materials | Discovered new exit (range 15) 2354 | -9/Materials | Discovered new exit (range 16) 2389 | -9/Materials | Core integrity fell below 20% 2457 | -9/Materials | Destroyed by G-34 Mercenary with Small Laser Last Messages --------------- Acquired 6 matter. K-01 Serf collects debris. R-06 Scavenger collects Lgt. Armor Plating. R-06 Scavenger collects Lgt. Treads. K-01 Serf collects debris. R-06 Scavenger collects Heat Sink. K-01 Serf collects debris. K-01 Serf destroyed. K-01 Serf collects debris. R-06 Scavenger collects Unknown Wheel. K-01 Serf cleans the Machine. R-06 Scavenger collects Lgt. Treads. K-01 Serf collects debris. G-34 Mercenary destroyed. Aluminum Leg destroyed. K-01 Serf cleans the Machine. G-47 Trooper suffers critical hit (Destroy). Destroyed Aluminum Leg. U-05 Engineer destroyed. Acquired 26 matter. Map ----- +----------------------------------------------------+ | """"" #???# #??????? ??????????????????? | | """"" #???# #??????? < ?????????????????? | | """"" #??## [ ######??? ????????????????? | | #??# [!! #??? #####???????????????? | | #??# ! ]]#??? ##???????????????????? | | """"" #??# ]]#??? #????????????????????? | | """"" #??# ]]#??? #????????????????????? | | """"" #??# !#??? +????????????????????? | | #??####### !#???? #????????????????????? | | #????????#####???? #????????????????????? | | """"" #????????????????? #????????????????????? | | """"" #???????????????? #????????????????????? | | """"" #???????????????? #????????????????????? | | #???????????????? #????????????????????? | | ? #???????????????? #????????????????????? | | ####?#####???????????????? #????????????????????? | | ?????????????????????????? ?????????????????????? | | ?????????????????????????? ?????????????????????? | | ????????????????????######k####??????????????????? | | ????????????????????# u #??????????????????? | | ?????########???????# #??????????????????? | | ?????# """ #???????# #??????????????????? | | ?????#[ """ #???????# #??????????????????? | | ?????# """ #???????# u #??????????????????? | | ?????# #???????# !a #??????????????????? | | ###??? #???????# ![@ #??????????????????? | | #????? ######### g=g #??? #?????????????? | | ########+## ###+######## #?????????????? | | # *% #?????????????? | | + < !% #?????????????? | | # [ #?????????????? | | # ####+##" "## ######?????????????? | | # #? #" |"! "## = #?????????????? | | # ## #"""""""## % #?????????????? | | ### + ########## < #?????????????? | | #?# ## #????????# #?????????????? | | ??# ## #????????######+## #?????????????? | | ### ## #?????????????? ?# ##?????????????? | | ## #??????????????? #? #??????????????? | | ## #??????????????? #?? +??????????????? | | ## #????????????????#??? #??????????????? | | +############????????????????????????????????????? | | ?????????#???????????????????????????????????????? | | ?????????????????????????????????????????????????? | | ?????????????????????????????????????????????????? | | ?????????????????????????????????????????????????? | | ?"???????????????????????????????????????????????? | | ?????????????????????????????????????????????????? | | ##???????????????????????????????????????????????? | | ???????#?????????????????????????????????????????? | +----------------------------------------------------+ Best States ------------- Heat Dissipation 38 Energy Generation 14 Energy Capacity 250 Matter Stores 300 Matter Capacity 300 Sight Range 18 Terrain Scan Range 16 Terrain Scan Density 10 Armor Coverage 450 Evasion (%) 63 Item Schematics ----------------- None Robot Schematics ------------------ None Fabricated ------------ Nothing Alien Tech Used ----------------- None Achievements -------------- Part-time Mechanic Shopping List System Compromised Unlikely Earthworm Challenges ------------ None Game ------ Seed MasterAbsorptionStripper Manual? 0 Play Time 00:50:06 Cumulative 3.1 hours Start 2024.04.28 @ 21:47:56 End 2024.04.28 @ 22:40:04 Sessions 1 Manual Loads 0 Difficulty Rogue Special Mode None Game No. 3 Rogue 3 Adventurer 0 Explorer 0 Win Type - Total 0 Types 0/0/0/0/0/0/0/0/0 Lore% 3 Gallery% 5 Achievement% 5 Wizard Run 0 Options --------- Layout 1 ASCII 0 Keyboard 0 Movement Mouse Keybinds 0 Fullscreen 2 Font 24/Smallcaps Map View 50x35 Zoom Use 0% Tactical HUD 0 Map Filters NONE Filters NONE Steam 1 RUN: d8fa55d0-7e47-465b-922d-532c632a3002